[Event "Early-Titled-Tuesday-Blitz-September-12-2023"]
[Site "Chess.com"]
[Date "2023.09.12"]
[Round "2"]
[White "wild3000"]
[Black "ChessQueen"]
[Result "0-1"]
[WhiteElo "2416"]
[BlackElo "2736"]
[TimeControl "180+1"]
[EndTime "8:17:50 PDT"]
[Termination "ChessQueen won on time"]

1. d4 {[%clk 0:02:37.6]} 1... Nf6 {[%clk 0:02:55.7]} 2. Nf3 {[%clk 0:02:35.5]}
2... b5 {[%clk 0:02:51.7]} 3. a4 {[%clk 0:02:33.3]} 3... b4 {[%clk 0:02:49.1]}
4. g3 {[%clk 0:02:31.4]} 4... Bb7 {[%clk 0:02:46.9]} 5. Bg2 {[%clk 0:02:31.3]}
5... e6 {[%clk 0:02:44.2]} 6. O-O {[%clk 0:02:31]} 6... Be7 {[%clk 0:02:40]} 7.
Nbd2 {[%clk 0:02:30.9]} 7... O-O {[%clk 0:02:39.4]} 8. Nb3 {[%clk 0:02:30.9]}
8... a5 {[%clk 0:02:31.2]} 9. Bg5 {[%clk 0:01:58]} 9... d6 {[%clk 0:02:29.6]}
10. Re1 {[%clk 0:01:45.3]} 10... Nbd7 {[%clk 0:02:28.9]} 11. c4 {[%clk
0:01:39.9]} 11... bxc3 {[%clk 0:02:27.2]} 12. bxc3 {[%clk 0:01:39.9]} 12... Ra7
{[%clk 0:02:19.2]} 13. Nfd2 {[%clk 0:01:33.4]} 13... Bxg2 {[%clk 0:01:59.1]} 14.
Kxg2 {[%clk 0:01:34.3]} 14... Qa8+ {[%clk 0:01:59.2]} 15. Kg1 {[%clk 0:01:29]}
15... Re8 {[%clk 0:01:38]} 16. Qc2 {[%clk 0:01:28.8]} 16... h6 {[%clk
0:01:34.3]} 17. Bxf6 {[%clk 0:01:22.8]} 17... Nxf6 {[%clk 0:01:31]} 18. e4
{[%clk 0:01:08.8]} 18... Rb8 {[%clk 0:01:25.2]} 19. Qd3 {[%clk 0:00:56.2]} 19...
Nd7 {[%clk 0:01:17.2]} 20. Qc4 {[%clk 0:00:49.3]} 20... Nb6 {[%clk 0:01:13.5]}
21. Qd3 {[%clk 0:00:42.5]} 21... Qc6 {[%clk 0:01:13.5]} 22. Reb1 {[%clk
0:00:33.7]} 22... Nxa4 {[%clk 0:01:04.8]} 23. c4 {[%clk 0:00:21]} 23... Rb4
{[%clk 0:01:02.9]} 24. d5 {[%clk 0:00:19.2]} 24... Qb6 {[%clk 0:01:00]} 25. dxe6
{[%clk 0:00:14.4]} 25... fxe6 {[%clk 0:01:00]} 26. e5 {[%clk 0:00:14.7]} 26...
Rb7 {[%clk 0:00:38.2]} 27. exd6 {[%clk 0:00:11]} 27... Qxd6 {[%clk 0:00:32.9]}
28. Qg6 {[%clk 0:00:10.4]} 28... Bf6 {[%clk 0:00:30.5]} 29. Ne4 {[%clk
0:00:07.6]} 29... Qe7 {[%clk 0:00:29]} 30. Nxf6+ {[%clk 0:00:04.9]} 30... Qxf6
{[%clk 0:00:29.9]} 31. Qe8+ {[%clk 0:00:04.5]} 31... Kh7 {[%clk 0:00:29.7]} 32.
Rxa4 {[%clk 0:00:04]} 32... Rxb3 {[%clk 0:00:30]} 33. Rxb3 {[%clk 0:00:03.9]}
33... Rxb3 {[%clk 0:00:30.9]} 34. Ra2 {[%clk 0:00:01.7]} 34... Qf3 {[%clk
0:00:27.5]} 0-1

[Event "Early-Titled-Tuesday-Blitz-September-12-2023"]
[Site "Chess.com"]
[Date "2023.09.12"]
[Round "2"]
[White "FMStan15"]
[Black "WelshTiger"]
[Result "1-0"]
[WhiteElo "2069"]
[BlackElo "2441"]
[TimeControl "180+1"]
[EndTime "8:17:51 PDT"]
[Termination "FMStan15 won by resignation"]

1. e4 {[%clk 0:03:00.9]} 1... c6 {[%clk 0:02:56.9]} 2. d4 {[%clk 0:02:58.8]}
2... d5 {[%clk 0:02:57.1]} 3. e5 {[%clk 0:02:57.5]} 3... Bf5 {[%clk 0:02:56.5]}
4. Bd3 {[%clk 0:02:56.7]} 4... Bxd3 {[%clk 0:02:56.3]} 5. Qxd3 {[%clk
0:02:56.4]} 5... e6 {[%clk 0:02:57.2]} 6. Ne2 {[%clk 0:02:55.7]} 6... a6 {[%clk
0:02:51.4]} 7. O-O {[%clk 0:02:55]} 7... c5 {[%clk 0:02:51.8]} 8. c3 {[%clk
0:02:54.2]} 8... Nc6 {[%clk 0:02:52.2]} 9. Rd1 {[%clk 0:02:53.8]} 9... Rc8
{[%clk 0:02:46.2]} 10. a3 {[%clk 0:02:51.3]} 10... cxd4 {[%clk 0:02:36.5]} 11.
cxd4 {[%clk 0:02:50.9]} 11... Nge7 {[%clk 0:02:37.1]} 12. Nbc3 {[%clk
0:02:51.1]} 12... Nf5 {[%clk 0:02:37.2]} 13. Kh1 {[%clk 0:02:46.2]} 13... Be7
{[%clk 0:02:37.2]} 14. f4 {[%clk 0:02:44.9]} 14... h5 {[%clk 0:02:36.4]} 15. Be3
{[%clk 0:02:43.2]} 15... Na5 {[%clk 0:02:33.7]} 16. Bf2 {[%clk 0:02:30.2]} 16...
h4 {[%clk 0:02:30.4]} 17. b4 {[%clk 0:02:19.2]} 17... Nc4 {[%clk 0:02:29.6]} 18.
Ra2 {[%clk 0:02:11.6]} 18... g5 {[%clk 0:02:07.6]} 19. fxg5 {[%clk 0:02:00.1]}
19... Bxg5 {[%clk 0:02:07.8]} 20. Qf3 {[%clk 0:01:57.9]} 20... Qe7 {[%clk
0:01:46.8]} 21. Nxd5 {[%clk 0:01:53.7]} 21... exd5 {[%clk 0:01:45.9]} 22. Qxf5
{[%clk 0:01:53.8]} 22... Rc6 {[%clk 0:01:36]} 23. Nf4 {[%clk 0:01:41.8]} 23...
Bxf4 {[%clk 0:01:32.3]} 24. Qxf4 {[%clk 0:01:41.6]} 24... h3 {[%clk 0:01:32.9]}
25. g3 {[%clk 0:01:27.3]} 25... Qe6 {[%clk 0:01:25.6]} 26. Be3 {[%clk 0:01:22]}
26... Qg6 {[%clk 0:01:22.1]} 27. Rf1 {[%clk 0:01:14.2]} 27... Rh7 {[%clk
0:01:19.7]} 28. a4 {[%clk 0:00:57.3]} 28... Qd3 {[%clk 0:01:19.7]} 29. Qf5
{[%clk 0:00:48]} 29... Nxe3 {[%clk 0:01:11]} 30. Qxd3 {[%clk 0:00:47.2]} 30...
Nxf1 {[%clk 0:00:41.5]} 31. Qxh7 {[%clk 0:00:42.5]} 31... Rc1 {[%clk 0:00:35.5]}
32. Kg1 {[%clk 0:00:41.9]} 32... Ne3+ {[%clk 0:00:16.4]} 33. Kf2 {[%clk
0:00:41.2]} 33... Ng4+ {[%clk 0:00:17.2]} 34. Kf3 {[%clk 0:00:18.8]} 1-0

[Event "Early-Titled-Tuesday-Blitz-September-12-2023"]
[Site "Chess.com"]
[Date "2023.09.12"]
[Round "2"]
[White "GMBenjaminBok"]
[Black "Journey_to_GrandMaster_YT"]
[Result "1-0"]
[WhiteElo "2987"]
[BlackElo "2625"]
[TimeControl "180+1"]
[EndTime "8:17:52 PDT"]
[Termination "GMBenjaminBok won by resignation"]

1. d4 {[%clk 0:03:00.9]} 1... d6 {[%clk 0:03:00.9]} 2. Nf3 {[%clk 0:02:59.7]}
2... Nf6 {[%clk 0:03:00.3]} 3. c4 {[%clk 0:02:59.5]} 3... Nbd7 {[%clk
0:02:59.5]} 4. Nc3 {[%clk 0:02:58.9]} 4... e5 {[%clk 0:03:00.1]} 5. g3 {[%clk
0:02:59.5]} 5... c6 {[%clk 0:03:00]} 6. Qc2 {[%clk 0:02:58.3]} 6... Be7 {[%clk
0:02:56.9]} 7. Bg2 {[%clk 0:02:58.1]} 7... O-O {[%clk 0:02:57.4]} 8. O-O {[%clk
0:02:58.6]} 8... Qc7 {[%clk 0:02:57.8]} 9. Rd1 {[%clk 0:02:58]} 9... Re8 {[%clk
0:02:56.7]} 10. b3 {[%clk 0:02:51.6]} 10... Bf8 {[%clk 0:02:56.1]} 11. Bb2
{[%clk 0:02:44.8]} 11... e4 {[%clk 0:02:51.5]} 12. Ne1 {[%clk 0:02:27.7]} 12...
d5 {[%clk 0:02:42.7]} 13. Rac1 {[%clk 0:02:14.6]} 13... dxc4 {[%clk 0:02:01.2]}
14. Nxe4 {[%clk 0:01:55.8]} 14... Nxe4 {[%clk 0:02:00.5]} 15. Bxe4 {[%clk
0:01:55.7]} 15... Nf6 {[%clk 0:01:59.6]} 16. Bf3 {[%clk 0:01:52.3]} 16... cxb3
{[%clk 0:01:57.8]} 17. axb3 {[%clk 0:01:52.8]} 17... Qb6 {[%clk 0:01:42.9]} 18.
Nd3 {[%clk 0:01:42]} 18... Be6 {[%clk 0:01:42.6]} 19. b4 {[%clk 0:00:37.2]}
19... Bxb4 {[%clk 0:01:16.9]} 20. Rb1 {[%clk 0:00:37.4]} 20... Be7 {[%clk
0:01:05.5]} 21. d5 {[%clk 0:00:37.1]} 21... Nxd5 {[%clk 0:00:58.2]} 22. Bxg7
{[%clk 0:00:37.2]} 22... Nb4 {[%clk 0:00:39.3]} 23. Nxb4 {[%clk 0:00:34.3]}
23... Kxg7 {[%clk 0:00:32.5]} 24. Nxc6 {[%clk 0:00:29.8]} 24... Qc7 {[%clk
0:00:32.4]} 25. Qb2+ {[%clk 0:00:25.3]} 25... Bf6 {[%clk 0:00:32.2]} 26. Qxb7
{[%clk 0:00:26]} 26... Qxb7 {[%clk 0:00:29.6]} 27. Rxb7 {[%clk 0:00:26.9]} 27...
a5 {[%clk 0:00:28.6]} 28. Nd4 {[%clk 0:00:26.4]} 28... a4 {[%clk 0:00:15.2]} 29.
Nxe6+ {[%clk 0:00:25.3]} 29... Rxe6 {[%clk 0:00:15.4]} 30. Bd5 {[%clk
0:00:23.4]} 30... Re7 {[%clk 0:00:12.9]} 31. Rxe7 {[%clk 0:00:22.9]} 31... Bxe7
{[%clk 0:00:13.8]} 32. Bxa8 {[%clk 0:00:22.6]} 32... a3 {[%clk 0:00:12.4]} 33.
Bd5 {[%clk 0:00:22.2]} 33... Bf6 {[%clk 0:00:09.7]} 34. Ba2 {[%clk 0:00:21.9]}
34... Bb2 {[%clk 0:00:09.4]} 35. Rd7 {[%clk 0:00:22]} 35... Kf6 {[%clk
0:00:10.3]} 36. f4 {[%clk 0:00:21.3]} 1-0

[Event "Early-Titled-Tuesday-Blitz-September-12-2023"]
[Site "Chess.com"]
[Date "2023.09.12"]
[Round "2"]
[White "Viacheslav92"]
[Black "KVAIDAN"]
[Result "1-0"]
[WhiteElo "2520"]
[BlackElo "2302"]
[TimeControl "180+1"]
[EndTime "8:17:55 PDT"]
[Termination "Viacheslav92 won by resignation"]

1. e4 {[%clk 0:02:45.8]} 1... e5 {[%clk 0:02:59.7]} 2. Nf3 {[%clk 0:02:40.9]}
2... d5 {[%clk 0:02:59.8]} 3. exd5 {[%clk 0:02:35.5]} 3... e4 {[%clk 0:02:59.2]}
4. Qe2 {[%clk 0:02:35.7]} 4... Nf6 {[%clk 0:02:59]} 5. Nc3 {[%clk 0:02:32.1]}
5... Be7 {[%clk 0:02:58.4]} 6. Nxe4 {[%clk 0:02:32.3]} 6... Nxd5 {[%clk
0:02:58.1]} 7. Nc3 {[%clk 0:02:24.7]} 7... Nxc3 {[%clk 0:02:45.1]} 8. dxc3
{[%clk 0:02:25.6]} 8... O-O {[%clk 0:02:44.9]} 9. Be3 {[%clk 0:02:23.3]} 9...
Be6 {[%clk 0:02:43.8]} 10. Qd3 {[%clk 0:02:20.6]} 10... Nd7 {[%clk 0:02:42.8]}
11. Be2 {[%clk 0:02:19.8]} 11... b5 {[%clk 0:02:38]} 12. O-O {[%clk 0:02:17.2]}
12... a5 {[%clk 0:02:35.2]} 13. Rfd1 {[%clk 0:02:16.1]} 13... Qc8 {[%clk
0:02:34.5]} 14. Nd4 {[%clk 0:02:13]} 14... Ne5 {[%clk 0:02:23.2]} 15. Qd2 {[%clk
0:02:08.6]} 15... Nc4 {[%clk 0:02:20.4]} 16. Bxc4 {[%clk 0:02:01.9]} 16... bxc4
{[%clk 0:02:20.1]} 17. Nxe6 {[%clk 0:01:58.3]} 17... Qxe6 {[%clk 0:02:19]} 18.
Qd7 {[%clk 0:01:55]} 18... Bd6 {[%clk 0:02:10.4]} 19. Qxe6 {[%clk 0:01:52.5]}
19... fxe6 {[%clk 0:02:10.6]} 20. b3 {[%clk 0:01:51.1]} 20... a4 {[%clk
0:02:03.3]} 21. b4 {[%clk 0:01:48.1]} 21... e5 {[%clk 0:01:46.5]} 22. Kf1 {[%clk
0:01:38.5]} 22... Rf6 {[%clk 0:01:43.6]} 23. Ke2 {[%clk 0:01:37.6]} 23... h6
{[%clk 0:01:42.3]} 24. Rd5 {[%clk 0:01:34.3]} 24... Kf7 {[%clk 0:01:39.1]} 25.
Rad1 {[%clk 0:01:31.6]} 25... Ke6 {[%clk 0:01:37.2]} 26. Bc5 {[%clk 0:01:18.6]}
26... Raf8 {[%clk 0:01:22.4]} 27. f3 {[%clk 0:00:58.5]} 27... Rd8 {[%clk
0:01:10.2]} 28. Bxd6 {[%clk 0:00:49.6]} 28... cxd6 {[%clk 0:00:57.6]} 29. Ra5
{[%clk 0:00:46.4]} 29... d5 {[%clk 0:00:54.9]} 30. Rxa4 {[%clk 0:00:44.7]} 30...
d4 {[%clk 0:00:55.3]} 31. Ra6+ {[%clk 0:00:43.6]} 31... Kf5 {[%clk 0:00:54.1]}
32. Rxf6+ {[%clk 0:00:40.7]} 32... gxf6 {[%clk 0:00:53.4]} 33. a4 {[%clk
0:00:39.8]} 33... Ke6 {[%clk 0:00:43.5]} 34. a5 {[%clk 0:00:38.2]} 34... Kd5
{[%clk 0:00:43]} 35. b5 {[%clk 0:00:33.7]} 35... Kc5 {[%clk 0:00:42.9]} 36. b6
{[%clk 0:00:33.9]} 36... Kb5 {[%clk 0:00:42.9]} 37. b7 {[%clk 0:00:28.1]} 37...
Rb8 {[%clk 0:00:33.6]} 38. cxd4 {[%clk 0:00:24.6]} 38... Rxb7 {[%clk 0:00:33.6]}
39. Rb1+ {[%clk 0:00:23.8]} 39... Kc6 {[%clk 0:00:30.7]} 40. Rxb7 {[%clk
0:00:24.7]} 40... Kxb7 {[%clk 0:00:30.2]} 41. dxe5 {[%clk 0:00:25.6]} 41... fxe5
{[%clk 0:00:30.6]} 42. Ke3 {[%clk 0:00:25.4]} 42... Kc6 {[%clk 0:00:30.8]} 43.
Ke4 {[%clk 0:00:25.8]} 43... Kb5 {[%clk 0:00:30.9]} 44. Kxe5 {[%clk 0:00:23.1]}
44... Kxa5 {[%clk 0:00:31.4]} 45. Kd4 {[%clk 0:00:23.5]} 45... Kb5 {[%clk
0:00:31.2]} 46. c3 {[%clk 0:00:24]} 46... Kc6 {[%clk 0:00:31]} 47. Kxc4 {[%clk
0:00:23.9]} 1-0

[Event "Early-Titled-Tuesday-Blitz-September-12-2023"]
[Site "Chess.com"]
[Date "2023.09.12"]
[Round "2"]
[White "Boxerandchessplayer"]
[Black "sara_khm"]
[Result "1/2-1/2"]
[WhiteElo "2109"]
[BlackElo "2453"]
[TimeControl "180+1"]
[EndTime "8:17:59 PDT"]
[Termination "Game drawn - insufficient material"]

1. d4 {[%clk 0:03:00.9]} 1... Nf6 {[%clk 0:02:59.8]} 2. Nf3 {[%clk 0:03:00.5]}
2... e6 {[%clk 0:03:00.2]} 3. c4 {[%clk 0:02:59]} 3... b6 {[%clk 0:03:00.8]} 4.
Bf4 {[%clk 0:02:58.1]} 4... Bb4+ {[%clk 0:02:59.3]} 5. Nbd2 {[%clk 0:02:57.1]}
5... Bb7 {[%clk 0:02:59.6]} 6. e3 {[%clk 0:02:57.1]} 6... a5 {[%clk 0:02:59]} 7.
h3 {[%clk 0:02:57]} 7... O-O {[%clk 0:02:59]} 8. Be2 {[%clk 0:02:56.2]} 8... Ne4
{[%clk 0:02:59.4]} 9. O-O {[%clk 0:02:55.5]} 9... Nxd2 {[%clk 0:02:52.5]} 10.
Nxd2 {[%clk 0:02:54]} 10... f5 {[%clk 0:02:52.9]} 11. Bf3 {[%clk 0:02:42.4]}
11... Bxf3 {[%clk 0:02:40.8]} 12. Nxf3 {[%clk 0:02:36.1]} 12... Be7 {[%clk
0:02:41.1]} 13. d5 {[%clk 0:02:27.9]} 13... Na6 {[%clk 0:02:39.5]} 14. dxe6
{[%clk 0:02:27]} 14... dxe6 {[%clk 0:02:39.7]} 15. Qxd8 {[%clk 0:02:20.9]} 15...
Raxd8 {[%clk 0:02:39.3]} 16. Rfd1 {[%clk 0:02:19.8]} 16... Bd6 {[%clk
0:02:39.2]} 17. Bxd6 {[%clk 0:01:56.9]} 17... cxd6 {[%clk 0:02:39]} 18. Nd4
{[%clk 0:01:56.6]} 18... Nc5 {[%clk 0:02:37]} 19. b3 {[%clk 0:01:52]} 19... Kf7
{[%clk 0:02:31.3]} 20. Nb5 {[%clk 0:01:52.2]} 20... Ke7 {[%clk 0:02:29.7]} 21.
Rab1 {[%clk 0:01:50.6]} 21... f4 {[%clk 0:02:23.1]} 22. exf4 {[%clk 0:01:46.6]}
22... Rxf4 {[%clk 0:02:22.4]} 23. a3 {[%clk 0:01:36.7]} 23... Rd7 {[%clk
0:02:10.3]} 24. f3 {[%clk 0:01:28.6]} 24... h5 {[%clk 0:02:06]} 25. b4 {[%clk
0:01:01.2]} 25... axb4 {[%clk 0:02:05.6]} 26. axb4 {[%clk 0:01:00.8]} 26... Nb7
{[%clk 0:01:55.9]} 27. Rd4 {[%clk 0:01:00.3]} 27... Rxd4 {[%clk 0:01:53.1]} 28.
Nxd4 {[%clk 0:00:59.9]} 28... Rc7 {[%clk 0:01:53.7]} 29. Re1 {[%clk 0:00:48.3]}
29... e5 {[%clk 0:01:52.4]} 30. Nf5+ {[%clk 0:00:48.8]} 30... Ke6 {[%clk
0:01:37.6]} 31. Ne3 {[%clk 0:00:48.7]} 31... Nd8 {[%clk 0:01:36.2]} 32. Ra1
{[%clk 0:00:17.6]} 32... Nc6 {[%clk 0:01:33.9]} 33. Ra4 {[%clk 0:00:15.6]} 33...
Nd4 {[%clk 0:01:29.7]} 34. Ra6 {[%clk 0:00:14.6]} 34... b5 {[%clk 0:01:30]} 35.
c5 {[%clk 0:00:13.1]} 35... Rc6 {[%clk 0:01:29.5]} 36. Rxc6 {[%clk 0:00:08.1]}
36... Nxc6 {[%clk 0:01:29.7]} 37. cxd6 {[%clk 0:00:08.8]} 37... Nxb4 {[%clk
0:01:30.2]} 38. Nf5 {[%clk 0:00:09.5]} 38... g6 {[%clk 0:01:27.1]} 39. Ne7
{[%clk 0:00:05.9]} 39... Kxd6 {[%clk 0:01:24.7]} 40. Nxg6 {[%clk 0:00:06.4]}
40... Nc2 {[%clk 0:01:24.8]} 41. Kf2 {[%clk 0:00:04.8]} 41... b4 {[%clk
0:01:25.3]} 42. Ke2 {[%clk 0:00:02.6]} 42... b3 {[%clk 0:01:25.7]} 43. Kd2
{[%clk 0:00:03.2]} 43... Kc5 {[%clk 0:01:18.9]} 44. Kc3 {[%clk 0:00:02.9]} 44...
Ne1 {[%clk 0:01:19.4]} 45. Nh4 {[%clk 0:00:02.7]} 45... e4 {[%clk 0:01:17.1]}
46. fxe4 {[%clk 0:00:02.5]} 46... Kd6 {[%clk 0:01:16.8]} 47. Kxb3 {[%clk
0:00:02.8]} 47... Ke5 {[%clk 0:01:17.4]} 48. g4 {[%clk 0:00:03.3]} 48... hxg4
{[%clk 0:01:16.2]} 49. hxg4 {[%clk 0:00:04.2]} 49... Kxe4 {[%clk 0:01:16.9]} 50.
g5 {[%clk 0:00:05]} 50... Ke5 {[%clk 0:01:17]} 51. Kc3 {[%clk 0:00:05.2]} 51...
Ng2 {[%clk 0:01:13.1]} 52. Nxg2 {[%clk 0:00:04.1]} 52... Kf5 {[%clk 0:01:13.8]}
53. Ne3+ {[%clk 0:00:03.2]} 53... Kxg5 {[%clk 0:01:14.1]} 1/2-1/2

[Event "Early-Titled-Tuesday-Blitz-September-12-2023"]
[Site "Chess.com"]
[Date "2023.09.12"]
[Round "2"]
[White "Biregina"]
[Black "PattyCastillo"]
[Result "1-0"]
[WhiteElo "2439"]
[BlackElo "1998"]
[TimeControl "180+1"]
[EndTime "8:17:59 PDT"]
[Termination "Biregina won on time"]

1. d4 {[%clk 0:02:50]} 1... d5 {[%clk 0:02:58.1]} 2. Bf4 {[%clk 0:02:49]} 2...
Nf6 {[%clk 0:02:57.3]} 3. e3 {[%clk 0:02:48.9]} 3... c5 {[%clk 0:02:57.2]} 4.
dxc5 {[%clk 0:02:49.8]} 4... Nc6 {[%clk 0:02:56.5]} 5. Nf3 {[%clk 0:02:25.1]}
5... Bg4 {[%clk 0:02:50.3]} 6. Bb5 {[%clk 0:02:21.2]} 6... e6 {[%clk 0:02:44.2]}
7. Bxc6+ {[%clk 0:01:58.5]} 7... bxc6 {[%clk 0:02:43.2]} 8. Qd4 {[%clk
0:01:58.1]} 8... Qa5+ {[%clk 0:02:36.1]} 9. b4 {[%clk 0:01:55.2]} 9... Qa4
{[%clk 0:02:21.2]} 10. c3 {[%clk 0:01:30.1]} 10... Bxf3 {[%clk 0:02:11.6]} 11.
gxf3 {[%clk 0:01:30.1]} 11... Be7 {[%clk 0:02:06.6]} 12. Rg1 {[%clk 0:01:27.6]}
12... Nh5 {[%clk 0:01:52]} 13. Bc7 {[%clk 0:01:01.4]} 13... Bf6 {[%clk
0:01:37.8]} 14. Be5 {[%clk 0:00:57.2]} 14... O-O-O {[%clk 0:00:57.8]} 15. Nd2
{[%clk 0:00:30.3]} 15... Qc2 {[%clk 0:00:52.5]} 16. Bxf6 {[%clk 0:00:20.2]}
16... Nxf6 {[%clk 0:00:46]} 17. Ke2 {[%clk 0:00:15.6]} 17... Rhg8 {[%clk
0:00:34.3]} 18. Qd3 {[%clk 0:00:12.6]} 18... Qxd3+ {[%clk 0:00:30.2]} 19. Kxd3
{[%clk 0:00:12.4]} 19... e5 {[%clk 0:00:30.4]} 20. Rg5 {[%clk 0:00:09.8]} 20...
e4+ {[%clk 0:00:26.2]} 21. fxe4 {[%clk 0:00:09.6]} 21... dxe4+ {[%clk
0:00:26.2]} 22. Kc2 {[%clk 0:00:06.9]} 22... Rd7 {[%clk 0:00:21.7]} 23. Nc4
{[%clk 0:00:04.9]} 23... Kc7 {[%clk 0:00:15.1]} 24. Nd6 {[%clk 0:00:04.8]} 24...
Nd5 {[%clk 0:00:09.4]} 25. Rag1 {[%clk 0:00:04.3]} 25... f6 {[%clk 0:00:08]} 26.
R5g4 {[%clk 0:00:04.7]} 26... Rxd6 {[%clk 0:00:04.6]} 27. cxd6+ {[%clk
0:00:04.7]} 27... Kxd6 {[%clk 0:00:04.6]} 28. Rxg7 {[%clk 0:00:05.3]} 28... Rxg7
{[%clk 0:00:04.5]} 29. Rxg7 {[%clk 0:00:05.9]} 29... h5 {[%clk 0:00:04.2]} 30.
Rh7 {[%clk 0:00:06.4]} 1-0

[Event "Early-Titled-Tuesday-Blitz-September-12-2023"]
[Site "Chess.com"]
[Date "2023.09.12"]
[Round "2"]
[White "vedantgoswami"]
[Black "AndreiITrifan"]
[Result "1/2-1/2"]
[WhiteElo "2327"]
[BlackElo "2621"]
[TimeControl "180+1"]
[EndTime "8:18:02 PDT"]
[Termination "Game drawn by repetition"]

1. b3 {[%clk 0:03:00.9]} 1... Nf6 {[%clk 0:02:59.3]} 2. Bb2 {[%clk 0:03:00.4]}
2... e6 {[%clk 0:02:59.5]} 3. Nf3 {[%clk 0:02:56]} 3... Be7 {[%clk 0:02:59.2]}
4. d3 {[%clk 0:02:52.4]} 4... d5 {[%clk 0:02:59]} 5. Nbd2 {[%clk 0:02:53.1]}
5... O-O {[%clk 0:02:53.1]} 6. g3 {[%clk 0:02:51.3]} 6... b6 {[%clk 0:02:52.1]}
7. Bg2 {[%clk 0:02:51.5]} 7... Bb7 {[%clk 0:02:52]} 8. O-O {[%clk 0:02:51.8]}
8... a5 {[%clk 0:02:49.3]} 9. a3 {[%clk 0:02:49.5]} 9... Re8 {[%clk 0:02:39.3]}
10. c4 {[%clk 0:02:48.6]} 10... h6 {[%clk 0:02:37.4]} 11. Ra2 {[%clk 0:02:46.9]}
11... Nbd7 {[%clk 0:02:33.8]} 12. Qa1 {[%clk 0:02:45.9]} 12... Bf8 {[%clk
0:02:32.6]} 13. Rc1 {[%clk 0:02:39.7]} 13... c5 {[%clk 0:02:24.6]} 14. Ne5
{[%clk 0:02:27.1]} 14... Qc7 {[%clk 0:02:22.8]} 15. Ndf3 {[%clk 0:02:21.4]}
15... d4 {[%clk 0:02:20.4]} 16. Nxd7 {[%clk 0:02:16.6]} 16... Nxd7 {[%clk
0:02:18.8]} 17. Re1 {[%clk 0:01:48.6]} 17... e5 {[%clk 0:02:12]} 18. e4 {[%clk
0:01:42.8]} 18... a4 {[%clk 0:01:54.8]} 19. bxa4 {[%clk 0:01:34.4]} 19... Bc6
{[%clk 0:01:46.3]} 20. Bc1 {[%clk 0:01:31.7]} 20... Rxa4 {[%clk 0:01:43.1]} 21.
Nh4 {[%clk 0:01:30.8]} 21... g6 {[%clk 0:01:37.8]} 22. Bd2 {[%clk 0:01:29]}
22... Rea8 {[%clk 0:01:35.1]} 23. Qc1 {[%clk 0:01:27.9]} 23... Kh7 {[%clk
0:01:30.4]} 24. f4 {[%clk 0:01:25.3]} 24... Qa7 {[%clk 0:01:15.9]} 25. f5 {[%clk
0:01:18.1]} 25... Rxa3 {[%clk 0:01:08.4]} 26. fxg6+ {[%clk 0:01:07.6]} 26...
fxg6 {[%clk 0:01:07.3]} 27. Rxa3 {[%clk 0:01:01]} 27... Qxa3 {[%clk 0:01:06.3]}
28. Qb1 {[%clk 0:00:51.2]} 28... Qa2 {[%clk 0:00:53.6]} 29. Qd1 {[%clk
0:00:50.2]} 29... Qb2 {[%clk 0:00:32.4]} 30. Nxg6 {[%clk 0:00:44.6]} 30... Ra2
{[%clk 0:00:16.8]} 31. Qh5 {[%clk 0:00:17.9]} 31... Qxd2 {[%clk 0:00:16.2]} 32.
Nxf8+ {[%clk 0:00:09]} 32... Nxf8 {[%clk 0:00:17.1]} 33. Qf7+ {[%clk 0:00:09.1]}
33... Kh8 {[%clk 0:00:17.2]} 34. Qxf8+ {[%clk 0:00:08.9]} 34... Kh7 {[%clk
0:00:18.1]} 35. Qf7+ {[%clk 0:00:09.2]} 35... Kh8 {[%clk 0:00:18.6]} 36. Qf8+
{[%clk 0:00:08.9]} 36... Kh7 {[%clk 0:00:19.1]} 37. Qf7+ {[%clk 0:00:08.8]}
37... Kh8 {[%clk 0:00:19.4]} 38. Qf8+ {[%clk 0:00:05.8]} 1/2-1/2

[Event "Early-Titled-Tuesday-Blitz-September-12-2023"]
[Site "Chess.com"]
[Date "2023.09.12"]
[Round "2"]
[White "kuba2006"]
[Black "jimmy-schlumpf"]
[Result "0-1"]
[WhiteElo "2535"]
[BlackElo "2307"]
[TimeControl "180+1"]
[EndTime "8:18:02 PDT"]
[Termination "jimmy-schlumpf won by resignation"]

1. b3 {[%clk 0:03:00.9]} 1... g6 {[%clk 0:02:58.8]} 2. Bb2 {[%clk 0:03:00.8]}
2... Nf6 {[%clk 0:02:59.1]} 3. e4 {[%clk 0:03:01.3]} 3... d6 {[%clk 0:02:52.2]}
4. f4 {[%clk 0:03:01.6]} 4... Bg7 {[%clk 0:02:51.7]} 5. e5 {[%clk 0:03:01.4]}
5... Nfd7 {[%clk 0:02:42.8]} 6. d4 {[%clk 0:02:56.8]} 6... O-O {[%clk
0:02:42.4]} 7. Nf3 {[%clk 0:02:54.7]} 7... c5 {[%clk 0:02:42.5]} 8. c3 {[%clk
0:02:49.9]} 8... cxd4 {[%clk 0:02:39.1]} 9. cxd4 {[%clk 0:02:50.8]} 9... dxe5
{[%clk 0:02:39.4]} 10. dxe5 {[%clk 0:02:47.3]} 10... Nc6 {[%clk 0:02:33.7]} 11.
Bc4 {[%clk 0:02:42.8]} 11... Nc5 {[%clk 0:02:27]} 12. Qe2 {[%clk 0:02:28.5]}
12... Bf5 {[%clk 0:02:22.5]} 13. O-O {[%clk 0:02:06.1]} 13... Nd3 {[%clk
0:02:04.2]} 14. g3 {[%clk 0:01:18.8]} 14... Nxb2 {[%clk 0:02:00.8]} 15. Qxb2
{[%clk 0:01:18.3]} 15... Bh3 {[%clk 0:01:28.3]} 16. Re1 {[%clk 0:01:00.6]} 16...
e6 {[%clk 0:01:17]} 17. Nc3 {[%clk 0:00:54.6]} 17... Qa5 {[%clk 0:01:10.9]} 18.
Ne4 {[%clk 0:00:38.9]} 18... Rfd8 {[%clk 0:01:07.5]} 19. Nfg5 {[%clk 0:00:33.9]}
19... Bf5 {[%clk 0:01:05]} 20. Nf6+ {[%clk 0:00:26.2]} 20... Bxf6 {[%clk
0:01:01.4]} 21. exf6 {[%clk 0:00:27.1]} 21... Rd2 {[%clk 0:00:59.6]} 22. Qc1
{[%clk 0:00:14.2]} 22... Qc5+ {[%clk 0:00:56.2]} 23. Kh1 {[%clk 0:00:13.4]}
23... Qf2 {[%clk 0:00:56.1]} 24. Qxd2 {[%clk 0:00:11.1]} 24... Qxd2 {[%clk
0:00:55.2]} 25. Rad1 {[%clk 0:00:12]} 25... Qb2 {[%clk 0:00:44.5]} 26. Rd7
{[%clk 0:00:11.8]} 26... Qxf6 {[%clk 0:00:37.5]} 27. Rxf7 {[%clk 0:00:06.9]}
27... Qxf7 {[%clk 0:00:36.9]} 28. Nxf7 {[%clk 0:00:07.8]} 28... Kxf7 {[%clk
0:00:36.5]} 29. Kg2 {[%clk 0:00:08.4]} 29... h5 {[%clk 0:00:36]} 30. h3 {[%clk
0:00:07.6]} 30... Rd8 {[%clk 0:00:35.5]} 31. h4 {[%clk 0:00:02.9]} 31... Rd2+
{[%clk 0:00:35.2]} 32. Kf3 {[%clk 0:00:03.5]} 32... Rxa2 {[%clk 0:00:32.1]} 33.
Ke3 {[%clk 0:00:02.3]} 33... a6 {[%clk 0:00:30.6]} 34. Rd1 {[%clk 0:00:02.3]}
34... Ke7 {[%clk 0:00:29.2]} 35. Kf3 {[%clk 0:00:02.4]} 35... b5 {[%clk
0:00:29.2]} 36. Be2 {[%clk 0:00:02.1]} 36... Rb2 {[%clk 0:00:28.9]} 37. Ke3
{[%clk 0:00:02.5]} 37... Rxb3+ {[%clk 0:00:28.6]} 38. Kf2 {[%clk 0:00:02.8]}
38... Rb2 {[%clk 0:00:28.8]} 39. Ke3 {[%clk 0:00:02.6]} 39... Rxe2+ {[%clk
0:00:27.6]} 40. Kxe2 {[%clk 0:00:03.5]} 40... Bg4+ {[%clk 0:00:27.7]} 41. Kd2
{[%clk 0:00:04.4]} 41... Bxd1 {[%clk 0:00:27.8]} 42. Kxd1 {[%clk 0:00:05.3]}
42... b4 {[%clk 0:00:28.4]} 0-1